bitfinex-derivatives/quotes_ETHF0:USTF0_20250918
["timestamp","ask_amount","ask_price","bid_price","bid_amount"]
[1758181890401,0.7241,4582.8,4582.7,0.3975]
[1758181891108,0.7241,4582.8,4582.7,0.7029]
[1758181892406,0.7241,4582.8,4582.7,0.5012]
[1758181893406,0.7241,4582.8,4582.7,0.1958]
[1758181893904,0.1254,4582.5,4582.4,1.35658048]
[1758181894109,0.8495,4582.5,4582.4,1.75408048]
[1758181894405,0.8495,4582.5,4582.3,0.0218]
[1758181894406,1.90068048,4582.5,4582.3,0.0218]
[1758181898512,1.13723,4582.4,4582.3,0.0218]
[1758181898704,0.919,4582.4,4582.3,0.0218]
[1758181899007,0.919,4582.4,4581.5,0.3136]
[1758181899208,0.698,4581.6,4581.5,0.7284]
[1758181903425,0.698,4581.6,4581.3,3.2078]
[1758181903426,0.698,4581.4,4581.3,3.2078]
[1758181903625,1.59652799,4581.4,4581.3,3.2078]
[1758181903825,1.59652799,4581.4,4581.2,0.0218]
[1758181904017,0.221,4581.3,4581.2,0.0218]
[1758181904217,0.919,4581.3,4581.2,0.0218]
[1758181910230,0.698,4581.3,4581.2,0.0218]
[1758181910532,0.919,4581.3,4581.2,0.0218]
[1758181911233,0.6122,4581.3,4580.6,1.21212799]
[1758181911530,0.698,4580.7,4580.6,1.62692799]
[1758181911720,0.919,4580.7,4580.6,1.62692799]
[1758181912228,0.919,4580.7,4580.3,0.3136]
[1758181912435,0.919,4580.7,4580.4,0.212]
[1758181912436,1.41522799,4580.5,4580.4,0.212]
[1758181913128,1.72202799,4580.5,4580.4,0.212]
[1758181913631,1.72202799,4580.5,4580.1,1.21212799]
[1758181913835,1.59652799,4580.3,4580.2,0.212]
[1758181915535,0.698,4580.3,4580.2,0.212]
[1758181915736,0.698,4580.3,4580.2,0.7284]
[1758181915930,0.919,4580.3,4580.2,0.7284]
[1758181916132,0.698,4580.3,4580.2,0.7284]
[1758181916326,0.221,4580.6,4580.3,0.3136]
[1758181916530,0.7212,4580.6,4580.5,0.89852799]
[1758181916735,0.7212,4580.6,4580.5,1.62692799]
[1758181919042,0.919,4580.6,4580.5,1.62692799]
[1758181920539,0.919,4580.6,4580.5,0.7284]
[1758181920843,0.919,4580.6,4580.0,3.3462]
[1758181920844,1.81752799,4580.6,4580.2,1.18712799]
[1758181921031,0.4052,4580.3,4580.2,1.39082799]
[1758181921231,0.7051,4580.3,4580.2,1.39082799]
[1758181921544,0.7051,4580.3,4580.2,0.2037]
[1758181921729,0.7051,4580.3,4580.0,3.2296]
[1758181921934,0.7051,4580.1,4580.0,4.33182799]
[1758181922133,0.7051,4580.1,4580.0,4.62042799]
[1758181922433,0.7051,4580.1,4580.0,4.82642799]
[1758181923143,0.2999,4580.4,4580.0,4.66212799]
[1758181923341,0.7051,4580.4,4580.3,1.59682799]
[1758181923540,0.2999,4580.6,4580.3,1.30822799]
[1758181923730,3.5077,4580.7,4580.5,0.534]
[1758181923937,0.7294,4580.6,4580.5,0.534]
[1758181924343,0.7294,4580.6,4580.5,0.8226]
[1758181924835,0.5084,4580.6,4580.5,0.8226]
[1758181925041,0.221,4580.6,4580.5,1.72112799]
[1758181926042,3.2078,4581.2,4581.1,0.7042]
[1758181926043,3.699,4581.2,4581.1,0.7042]
[1758181926246,3.699,4581.2,4581.1,1.60272799]
[1758181926548,0.221,4581.2,4581.1,1.60272799]
[1758181926746,3.2078,4582.3,4581.6,0.7042]
[1758181926941,0.3228,4582.0,4581.9,0.1934]
[1758181927141,0.3228,4582.0,4581.7,0.3056]
[1758181927142,1.42722799,4582.0,4581.7,0.3056]
[1758181927445,0.6971,4581.5,4581.4,1.29712799]
[1758181927838,0.6971,4581.5,4581.4,1.60272799]
[1758181928038,0.2961,4581.7,4581.5,0.3056]
[1758181928248,0.6971,4581.7,4581.6,1.60272799]
[1758181928749,0.6971,4581.7,4580.6,3.2078]
[1758181929046,0.401,4580.7,4580.6,0.499]
[1758181929248,0.6971,4580.7,4580.6,0.7042]
[1758181930344,0.6971,4580.7,4580.1,0.499]
[1758181930345,0.401,4580.2,4580.1,0.499]
[1758181930648,0.6971,4580.2,4580.1,1.60272799]
[1758181931444,0.6971,4580.2,4580.1,0.7042]
[1758181931644,0.6971,4580.2,4580.1,1.60272799]
[1758181931848,0.6971,4580.2,4580.1,0.7042]
[1758181934252,0.6971,4580.2,4579.6,0.221]
[1758181934253,1.59562799,4580.2,4579.6,1.11952799]
[1758181934450,1.02622799,4580.0,4579.9,0.1934]
[1758181934750,1.42722799,4580.0,4579.9,0.1934]
[1758181934944,1.72332799,4580.0,4579.9,0.499]
[1758181935655,1.72332799,4580.0,4579.9,0.1934]
[1758181936958,0.8248,4580.0,4579.9,0.499]
[1758181937256,0.8248,4580.0,4579.9,0.7042]
[1758181938453,1.72332799,4580.0,4579.9,0.7042]
[1758181939852,1.72332799,4580.0,4579.9,0.1934]
[1758181943061,1.72332799,4580.0,4579.7,0.0218]
[1758181943248,1.59562799,4579.8,4579.7,0.0218]
[1758181944561,1.81662799,4579.8,4579.7,0.0218]
[1758181945657,1.81662799,4579.8,4579.7,0.5208]
[1758181946460,1.81662799,4579.8,4579.7,0.726]
[1758181946966,1.81662799,4579.8,4579.7,0.0218]
[1758181947156,1.59562799,4579.8,4579.7,0.0218]
[1758181947458,1.81662799,4579.8,4579.7,0.0218]
[1758181948060,1.81662799,4579.8,4579.7,0.2152]
[1758181949859,1.81662799,4579.8,4579.5,3.2078]
[1758181950058,1.59562799,4579.6,4579.5,3.4012]
[1758181950259,1.59562799,4579.6,4579.5,3.7068]
[1758181952461,1.59562799,4579.6,4579.3,0.0218]
[1758181952659,1.59562799,4579.4,4579.3,0.0218]
[1758181955464,1.59562799,4579.4,4579.3,0.2152]
[1758181955665,1.59562799,4579.4,4579.3,0.5289]
[1758181955864,1.81562799,4579.4,4579.3,0.7372]
[1758181956468,1.81562799,4579.4,4579.3,0.2152]
[1758181956662,1.81562799,4579.4,4579.3,0.0218]
[1758181957167,1.59562799,4579.4,4579.3,0.0218]
[1758181957367,1.81562799,4579.4,4579.3,0.0218]
[1758181960667,1.81562799,4579.4,4579.3,0.2274]
[1758181960864,1.59562799,4579.4,4579.3,0.2274]
[1758181961072,0.9171,4579.4,4579.3,0.5411]
[1758181961273,1.59562799,4579.4,4579.3,0.5411]
[1758181961481,1.81562799,4579.4,4579.3,0.7494]
[1758181962478,0.6971,4579.4,4579.3,0.7494]
[1758181962779,0.7112,4579.4,4579.3,0.7494]
[1758181962974,0.9118,4579.4,4579.3,0.7494]
[1758181963175,1.81032799,4579.4,4579.3,0.0218]
[1758181963876,1.96417851,4579.4,4579.3,0.0218]
[1758181965378,1.96417851,4579.4,4579.3,0.5411]
[1758181966085,1.74417851,4579.4,4579.3,0.5411]
[1758181966287,1.96417851,4579.4,4579.3,0.5411]
[1758181967087,1.96417851,4579.4,4579.3,0.2274]
[1758181967484,0.6918,4579.4,4579.3,0.7494]
[1758181967787,0.9118,4579.4,4579.3,0.7494]
[1758181969585,0.6157,4579.4,4579.0,3.2078]
[1758181969780,0.6157,4579.4,4579.0,3.4134]
[1758181969781,0.6923,4579.1,4579.0,3.4134]
[1758181969985,0.6923,4579.1,4579.0,3.7271]
[1758181970193,0.6923,4579.1,4579.0,3.9354]
[1758181973793,0.4917,4579.1,4579.0,3.9354]
[1758181973986,0.296,4579.2,4579.1,0.3137]
[1758181974289,0.4917,4579.2,4579.1,0.7276]
[1758181980697,0.6923,4579.2,4579.1,0.7276]
[1758181982493,0.3176,4579.5,4579.2,0.2908]
[1758181982790,3.2078,4579.8,4579.7,0.6923]
[1758181982791,0.5126,4579.8,4579.7,0.6923]
[1758181983097,0.9256,4579.8,4579.7,0.6923]
[1758181983599,0.3176,4580.2,4579.7,1.45387851]
[1758181983797,0.3176,4580.2,4580.1,1.74467851]
[1758181983798,0.5126,4580.2,4580.1,1.74467851]
[1758181984597,0.5126,4580.2,4580.1,0.6923]
[1758181985906,0.7056,4580.2,4580.1,0.6923]
[1758181987104,0.5126,4580.2,4580.1,1.74467851]
[1758181988600,0.7133,4580.2,4580.1,0.6923]
[1758181988800,0.7133,4580.2,4580.1,0.1931]
[1758181989703,0.3166,4580.1,4579.6,0.5145]
[1758181989904,1.76407851,4579.7,4579.6,0.7226]
[1758181990209,1.76407851,4579.7,4579.6,0.2081]
[1758181992108,1.76407851,4579.7,4579.3,0.2945]
[1758181992504,0.1226,4579.5,4579.3,0.2945]
[1758181992707,0.1226,4579.5,4579.3,0.5026]
[1758181992708,0.7117,4579.4,4579.3,0.5026]
[1758181995313,0.7117,4579.4,4579.3,0.6995]
[1758181997219,0.3166,4579.6,4579.4,0.2945]
[1758181997409,0.3166,4579.6,4579.3,0.405]
[1758181997410,0.511,4579.6,4579.5,0.8204]
[1758181997610,0.511,4579.6,4579.5,0.6995]
[1758181997611,0.7117,4579.6,4579.5,0.6995]
[1758181998211,0.511,4579.6,4579.5,0.8204]
[1758181998609,0.3166,4579.9,4579.8,0.405]
[1758181998909,0.511,4579.9,4579.8,0.6995]
[1758181999509,1.27237851,4580.2,4579.8,0.405]
[1758181999510,0.3166,4580.1,4579.8,0.405]
[1758181999716,0.511,4580.1,4580.0,0.405]
[1758181999914,0.511,4580.1,4580.0,0.6995]
[1758182001210,0.7117,4580.1,4580.0,0.6995]
[1758182003119,0.7117,4580.1,4580.0,3.7104]
[1758182003317,1.76407851,4580.1,4580.0,0.2081]
[1758182006913,0.7117,4579.8,4579.7,0.5026]
[1758182007315,0.7117,4579.8,4579.7,0.6995]
[1758182008324,0.7117,4579.8,4579.7,0.2081]
[1758182008616,0.7117,4579.8,4579.7,0.5026]
[1758182010725,1.76407851,4579.8,4579.7,0.5026]
[1758182011117,1.76407851,4579.8,4579.7,0.2081]
[1758182011314,1.76407851,4579.8,4579.5,0.3163]
[1758182014327,1.76407851,4579.8,4579.5,0.0218]
[1758182020928,1.76407851,4579.8,4579.5,0.3176]
[1758182022936,1.76407851,4579.8,4579.5,0.0218]
[1758182024938,1.98407851,4579.8,4579.5,0.0218]
[1758182025731,1.11107354,4579.6,4579.5,0.0218]
[1758182026038,1.61357354,4579.6,4579.3,0.2958]
[1758182026341,1.31717354,4579.4,4579.3,0.5037]
[1758182026534,1.61357354,4579.4,4579.3,0.5037]
[1758182028644,0.7142,4579.4,4579.3,1.60297354]
[1758182029337,0.89937354,4579.8,4579.3,1.30717354]
[1758182029538,0.2117,4579.5,4579.4,0.4957]
[1758182029740,0.5081,4579.5,4579.4,0.7036]
[1758182030135,0.7142,4579.5,4579.4,0.7036]
[1758182031141,0.8357,4579.5,4579.4,0.7036]
[1758182031540,0.8357,4579.5,4579.1,1.21697354]
[1758182031736,0.7142,4579.2,4579.1,1.12907354]
[1758182032139,1.61357354,4579.2,4579.1,0.2297]
[1758182032642,1.61357354,4579.2,4579.1,0.5255]
[1758182033238,1.61357354,4579.2,4579.1,0.2297]
[1758182034144,1.61357354,4579.2,4579.1,0.5255]
[1758182034644,1.61357354,4579.2,4579.1,0.2297]
[1758182036435,1.61357354,4579.2,4579.1,0.0218]
[1758182036843,1.61357354,4579.2,4579.1,0.2297]
[1758182037244,1.61357354,4579.2,4579.1,0.5255]
[1758182037448,1.61357354,4579.2,4579.1,0.7254]
[1758182037645,0.7142,4579.2,4579.1,0.7254]
[1758182040251,1.61357354,4579.2,4579.1,0.7254]
[1758182040450,1.61357354,4579.2,4579.1,0.2297]
[1758182040649,1.61357354,4579.2,4579.1,0.5383]
[1758182040843,1.61357354,4579.2,4579.1,0.7496]
[1758182041750,0.7142,4579.2,4579.1,0.7496]
[1758182043750,0.7142,4579.2,4579.1,0.441]
[1758182043943,0.7142,4579.2,4579.1,0.2297]
[1758182045145,0.7142,4579.2,4579.1,0.0218]
[1758182046251,0.7142,4579.2,4579.1,0.2149]
[1758182048153,0.7142,4579.2,4579.1,0.0218]
[1758182054460,0.7142,4579.2,4579.1,1.61237354]
[1758182054461,0.5081,4579.2,4579.1,1.61237354]
[1758182055257,0.5081,4579.2,4579.1,1.59057354]
[1758182056357,0.4961,4579.9,4579.8,0.6912]
[1758182056660,0.4961,4579.9,4579.8,1.59057354]
[1758182057060,0.6916,4579.9,4579.8,1.59057354]
[1758182059262,0.4961,4579.9,4579.8,1.59057354]
[1758182060758,1.59097354,4579.9,4579.7,3.2078]
[1758182060961,1.59097354,4579.9,4579.8,0.1942]
[1758182061162,0.6916,4579.8,4579.6,0.2418]
[1758182061364,1.29657354,4579.7,4579.6,0.436]
[1758182061660,1.59097354,4579.7,4579.6,0.7241]
[1758182062165,1.59097354,4579.7,4579.6,0.933]
[1758182062459,0.6916,4579.7,4579.6,0.933]
[1758182062660,0.6916,4579.7,4579.6,0.436]
[1758182063263,0.6916,4579.7,4579.6,0.7241]
[1758182064857,0.6916,4579.7,4579.6,0.2418]
[1758182065361,0.6916,4579.7,4579.6,0.436]
[1758182065565,0.6916,4579.7,4579.6,0.2418]
[1758182069060,4.6916,4579.7,4579.6,0.0218]
[1758182069264,4.90996001,4579.7,4579.6,0.0218]
[1758182070765,4.6916,4579.7,4579.6,0.0218]
[1758182074566,5.2083114,4579.7,4579.6,0.0218]
[1758182076666,4.6916,4579.7,4579.6,0.0218]
[1758182077163,0.6916,4579.7,4579.6,0.5071]
[1758182077374,0.9116,4579.7,4579.6,0.5071]
[1758182077564,0.9116,4579.7,4579.6,0.2188]
[1758182077764,0.9116,4579.7,4579.6,0.0218]
[1758182078461,1.42826568,4579.7,4579.6,0.0218]
[1758182081667,1.42826568,4579.7,4578.9,0.2883]
[1758182081870,1.31087354,4579.1,4579.0,0.6969]
[1758182082464,1.62687354,4579.1,4579.0,0.6969]
[1758182083165,1.62687354,4579.1,4579.0,0.197]
[1758182083765,1.62687354,4579.1,4579.0,0.4853]
[1758182084066,1.62687354,4579.1,4579.0,1.59627354]
[1758182084770,1.62687354,4579.1,4579.0,0.6969]
[1758182085765,0.7275,4579.1,4579.0,0.6969]
[1758182099479,1.05235304,4579.7,4579.0,0.8165]
[1758182099671,1.05235304,4579.7,4579.5,0.6969]
[1758182099672,1.2451659,4579.6,4579.5,0.6969]
[1758182099870,1.2451659,4579.6,4579.5,0.197]
[1758182100068,0.4115,4579.3,4579.2,0.4853]
[1758182100270,0.7275,4579.3,4579.2,0.4853]
[1758182100668,0.1231,4579.0,4578.9,0.5215]
[1758182100869,0.8521,4579.0,4578.9,0.5215]
[1758182101377,0.8521,4579.0,4578.8,0.0218]
[1758182101586,2.29905771,4578.9,4578.8,0.0218]
[1758182101776,0.1231,4578.5,4578.1,3.2078]
[1758182102083,1.78135304,4578.2,4578.1,3.2078]
[1758182102785,1.78135304,4578.2,4578.1,3.4179]
[1758182102979,1.78135304,4578.2,4578.1,3.7293]
[1758182103476,1.78135304,4578.2,4578.1,3.4179]
[1758182104084,1.78135304,4578.2,4578.1,3.7293]
[1758182105783,1.78135304,4578.2,4578.1,3.4179]
[1758182106179,1.78135304,4578.2,4578.1,3.7067]
[1758182107382,0.1231,4578.5,4578.1,3.9054]
[1758182107585,1.77225304,4578.7,4578.6,0.3951]
[1758182107786,1.77225304,4578.7,4578.6,0.6839]
[1758182108185,1.77225304,4578.7,4578.6,0.1964]
[1758182108386,0.4075,4578.4,4578.3,0.4852]
[1758182108584,1.77225304,4578.4,4578.3,0.1964]
[1758182109083,1.77225304,4578.4,4578.1,3.2078]
[1758182109277,0.4075,4578.2,4578.1,3.2078]
[1758182109484,0.7199,4578.2,4578.1,3.693]
[1758182109676,3.2078,4579.5,4579.1,0.2888]
[1758182109881,3.2078,4579.5,4579.0,0.3223]
[1758182109882,3.4278,4579.5,4579.4,0.2888]
[1758182110081,4.48015304,4579.5,4579.4,0.2888]
[1758182110283,4.99649374,4579.5,4579.1,0.2888]
[1758182110584,1.05235304,4579.2,4579.1,0.2888]
[1758182111585,1.05235304,4579.2,4579.1,0.4852]
[1758182111888,1.27235304,4579.2,4579.1,0.4852]
[1758182113190,1.27235304,4579.2,4579.1,0.2888]
[1758182119300,1.78994318,4579.2,4579.0,0.4147]
[1758182119501,0.51760822,4579.1,4578.5,0.1259]
[1758182119701,1.05235304,4578.6,4578.5,0.4147]
[1758182119912,1.27235304,4578.6,4578.5,0.6111]
[1758182120102,1.27235304,4578.6,4578.5,0.4147]
[1758182121103,1.27235304,4578.6,4578.5,0.6111]
[1758182123197,1.27235304,4578.6,4578.5,0.4147]
[1758182127305,2.32470608,4578.6,4578.5,0.4147]
[1758182127505,1.27235304,4578.6,4578.5,0.4147]
[1758182129009,1.27235304,4578.6,4578.5,0.6111]
[1758182129307,1.79030665,4578.6,4578.5,0.6111]
[1758182130408,1.57030665,4578.6,4578.5,0.6111]
[1758182130603,1.79030665,4578.6,4578.5,0.6111]
[1758182132011,1.79030665,4578.6,4578.5,0.4147]
[1758182132509,1.57030665,4578.6,4578.5,0.4147]
[1758182132709,1.79030665,4578.6,4578.5,0.4147]
[1758182139708,6.84265969,4578.6,4578.1,0.2999]
[1758182140012,4.26015304,4578.2,4578.1,0.2999]
[1758182140215,4.99810665,4578.2,4578.1,0.2999]
[1758182141516,4.99810665,4578.2,4577.9,0.2999]
[1758182141817,0.51795361,4578.1,4577.8,0.0218]
[1758182142010,0.51795361,4578.0,4577.9,0.2999]
[1758182143010,1.57030665,4578.0,4577.9,0.2999]
[1758182144116,1.79030665,4578.0,4577.9,0.2999]
[1758182145814,2.53861357,4578.0,4577.9,0.2999]
[1758182147413,2.31861357,4578.0,4577.9,0.2999]
[1758182147715,2.53861357,4578.0,4577.9,0.2999]
[1758182148219,2.31861357,4578.0,4577.9,0.2999]
[1758182148413,2.53861357,4578.0,4577.9,0.2999]
[1758182151717,1.63828359,4578.0,4577.9,0.6988]
[1758182152719,1.41828359,4578.0,4577.9,0.6988]
[1758182153020,3.2078,4578.2,4578.1,0.3989]
[1758182153223,3.4278,4578.2,4578.1,1.59912998]
[1758182154723,3.2078,4578.2,4578.1,1.59912998]
[1758182154918,3.2078,4578.7,4578.1,5.59912998]
[1758182155222,3.2078,4578.7,4578.6,0.6988]
[1758182155417,3.4278,4578.7,4578.6,0.6988]
[1758182156324,4.32812998,4578.7,4578.6,0.6988]
[1758182157629,3.4278,4578.7,4578.6,0.6988]
[1758182158026,4.32812998,4578.7,4578.6,0.6988]
[1758182161028,4.32812998,4578.7,4578.6,0.2999]
[1758182161323,4.84600225,4578.7,4578.6,0.2999]
[1758182162227,4.84600225,4578.7,4578.6,0.7067]
[1758182163327,4.62600225,4578.7,4578.6,0.7067]
[1758182163528,4.32812998,4578.7,4578.6,0.7067]
[1758182164531,4.32812998,4578.7,4578.6,0.2999]
[1758182165432,4.8458944,4578.7,4578.6,0.2999]
[1758182165833,4.8458944,4578.7,4578.6,0.4975]
[1758182167236,4.6258944,4578.7,4578.6,0.4975]
[1758182167438,4.32812998,4578.7,4578.6,0.4975]
[1758182172139,4.32812998,4578.7,4578.6,0.6895]
[1758182172140,3.2078,4578.7,4578.6,0.6895]
[1758182172350,3.4278,4578.7,4578.6,1.58982998]
[1758182173143,3.2078,4579.3,4579.2,0.7122]
[1758182173345,4.32812998,4579.3,4579.2,0.7122]
[1758182174539,4.10812998,4579.3,4579.2,0.3096]
[1758182174740,4.32812998,4579.3,4579.2,0.3096]
[1758182175849,4.8456727,4579.3,4579.2,0.3096]
[1758182179049,4.8456727,4579.3,4579.2,0.5202]
[1758182180347,4.8456727,4579.3,4579.2,0.7122]
[1758182181344,4.8456727,4579.3,4579.2,0.5202]
[1758182181745,4.6256727,4579.3,4579.2,0.5202]
[1758182181951,4.8456727,4579.3,4579.2,0.5202]
[1758182183953,4.8456727,4579.3,4579.2,0.3096]
[1758182188959,4.8456727,4579.3,4579.2,0.5202]
[1758182196563,4.6256727,4579.3,4579.2,0.5202]
[1758182196758,4.8456727,4579.3,4579.2,0.5202]
[1758182197473,4.6256727,4579.3,4579.2,0.5202]
[1758182197674,4.8456727,4579.3,4579.2,0.5202]
[1758182198274,5.0760997,4579.3,4579.2,0.5202]
[1758182200471,5.0760997,4579.3,4579.2,0.3096]
[1758182201876,5.97642968,4579.3,4579.0,0.4613]
[1758182202074,1.80065996,4579.1,4579.0,0.0218]
[1758182202265,2.76862968,4579.1,4579.0,0.0218]
[1758182202575,2.98701968,4579.1,4578.6,0.3142]
[1758182202775,4.10812998,4578.7,4578.6,0.3142]
[1758182202977,4.8456727,4578.7,4578.6,0.3142]
[1758182207981,4.99822159,4578.7,4578.6,0.3142]
[1758182208976,4.77822159,4578.7,4578.6,0.3142]
[1758182209282,4.99822159,4578.7,4578.6,0.509]
[1758182211180,3.72534272,4578.7,4578.6,0.509]
[1758182211379,4.99822159,4578.7,4578.6,0.509]
[1758182212580,4.99822159,4578.7,4578.6,0.3142]
[1758182216479,4.77822159,4578.7,4578.6,0.7106]
[1758182216674,4.48067887,4578.7,4578.6,0.7106]
[1758182217285,4.99754338,4578.7,4578.6,0.7106]
[1758182218085,4.77754338,4578.7,4578.6,0.7106]
[1758182218282,3.2078,4578.7,4578.6,1.76347887]
[1758182218487,3.2078,4579.2,4579.1,0.7106]
[1758182218788,3.94469814,4579.2,4579.1,0.7106]
[1758182221680,3.72469814,4579.2,4579.1,0.7106]
[1758182221892,3.94469814,4579.2,4579.1,0.7106]
[1758182222392,3.72469814,4579.2,4579.1,0.7106]
[1758182222595,3.94469814,4579.2,4579.1,0.7106]
[1758182222986,4.99757701,4579.2,4579.1,0.7106]
[1758182224295,4.77757701,4579.2,4579.1,0.7106]
[1758182224590,4.99757701,4579.2,4579.1,0.7106]
[1758182225395,4.99757701,4579.2,4579.0,0.122]
[1758182225686,0.74609326,4579.1,4578.6,0.2897]
[1758182225890,1.05287887,4578.9,4578.6,0.2897]
[1758182226084,0.73689814,4578.8,4578.6,0.2897]
[1758182226282,0.51689814,4578.7,4578.6,0.2897]
[1758182226690,1.56977701,4578.7,4578.6,0.2897]
[1758182227885,1.56977701,4578.7,4578.6,0.4973]
[1758182230293,1.56977701,4578.7,4578.6,0.7067]
[1758182230488,1.78977701,4578.7,4578.6,0.7067]
[1758182231785,1.569939,4578.7,4578.6,0.7067]
[1758182232096,4.997739,4578.7,4578.6,0.2897]
[1758182234098,4.997739,4578.7,4578.6,0.7067]
[1758182235600,4.777739,4578.7,4578.6,0.7067]
[1758182235797,4.997739,4578.7,4578.6,0.7067]
[1758182236799,4.997739,4578.7,4578.6,0.8067]
[1758182239298,4.777739,4578.7,4578.6,0.8067]
[1758182239501,4.997739,4578.7,4578.6,0.5973]
[1758182243205,4.997739,4578.7,4578.6,0.3897]
[1758182250312,4.99740408,4578.7,4578.6,0.3897]
[1758182254821,5.22410406,4578.7,4578.6,0.3897]
[1758182257808,6.27698293,4578.7,4578.3,0.3076]
[1758182258008,1.05287887,4578.4,4578.1,0.3076]
[1758182258209,4.26067887,4578.2,4578.1,0.501]
[1758182258413,4.99740408,4578.2,4578.1,0.501]
[1758182258613,4.99740408,4578.2,4578.1,0.3076]
[1758182260721,3.72452521,4578.2,4578.1,0.7097]
[1758182260921,3.94452521,4578.2,4578.1,0.7097]
[1758182261126,3.72452521,4578.2,4578.1,0.7097]
[1758182261329,4.77740408,4578.2,4578.1,0.7097]
[1758182261529,4.99740408,4578.2,4578.1,0.7097]
[1758182263333,4.99740408,4578.2,4578.1,0.501]
[1758182264332,4.99740408,4578.2,4578.1,0.7097]
[1758182265030,4.99740408,4578.2,4578.1,0.501]
[1758182267839,4.84458077,4578.2,4578.1,0.501]
[1758182268733,4.84458077,4578.2,4578.1,0.3076]
[1758182269535,4.62458077,4578.2,4578.1,0.3076]
[1758182269735,4.84458077,4578.2,4578.1,0.3076]
[1758182270830,4.84458077,4578.2,4578.1,0.501]
[1758182273637,4.62458077,4578.2,4578.1,0.501]
[1758182273837,4.84458077,4578.2,4578.1,0.501]
[1758182275040,4.84458077,4578.2,4578.1,0.7097]
[1758182275837,3.72452521,4578.2,4578.1,0.7097]
[1758182276144,3.94452521,4578.2,4578.1,0.7097]
[1758182277638,3.72452521,4578.2,4578.1,0.7097]
[1758182277937,3.94452521,4578.2,4578.1,0.7097]
[1758182280043,3.4278,4578.2,4578.1,0.7097]
[1758182280242,3.94362926,4578.2,4578.1,0.7097]
[1758182283443,3.94362926,4578.2,4578.1,0.501]
[1758182286644,3.94362926,4578.2,4578.1,0.3076]
[1758182289749,3.94362926,4578.2,4578.1,0.5063]
[1758182289950,3.72362926,4578.2,4578.1,0.5063]
[1758182290251,3.94362926,4578.2,4578.1,0.5063]
[1758182291450,3.94362926,4578.2,4578.1,0.3076]
[1758182291851,4.19193552,4578.2,4578.1,0.3076]
[1758182294658,4.19193552,4578.2,4578.1,0.5063]
[1758182296258,3.97193552,4578.2,4578.1,0.5063]
[1758182296461,3.97193552,4578.2,4578.1,0.7013]
[1758182296647,4.19193552,4578.2,4578.1,0.7013]
[1758182297658,3.97193552,4578.2,4578.1,0.7013]
[1758182297859,4.19193552,4578.2,4578.1,0.7013]
[1758182298054,3.94362926,4578.2,4578.1,0.7013]
[1758182298864,4.84368482,4578.2,4578.1,0.7013]
[1758182299247,4.32785556,4578.2,4578.1,0.7013]
[1758182303663,3.2078,4578.2,4578.1,0.7013]
[1758182303860,3.4278,4578.2,4578.1,0.7013]
[1758182306468,3.2078,4578.2,4578.1,0.7013]
[1758182306671,3.4278,4578.2,4578.1,0.7013]
[1758182307468,3.2078,4578.2,4578.1,0.7013]
[1758182307765,3.4278,4578.2,4578.1,0.7013]
[1758182308367,3.2078,4578.2,4578.1,0.7013]
[1758182308568,3.4278,4578.2,4578.1,0.7013]
[1758182309564,3.2078,4578.8,4578.7,0.3937]
[1758182309769,0.98874212,4578.8,4578.7,0.7021]
[1758182309966,0.73596638,4578.8,4578.7,0.7021]
[1758182310268,0.22,4578.8,4578.7,0.7021]
[1758182310468,0.90005556,4578.9,4578.8,0.3084]
[1758182310670,1.88862663,4578.9,4578.8,0.3084]
[1758182311967,0.98857107,4578.9,4578.8,0.3084]
[1758182315668,0.98857107,4578.9,4578.8,0.5071]
[1758182318479,0.76857107,4578.9,4578.8,0.7011]
[1758182318680,0.90005556,4579.0,4578.8,0.3927]
[1758182318880,0.219,4578.9,4578.8,0.6877]
[1758182319579,0.90005556,4579.0,4578.9,0.295]
[1758182319779,1.88718991,4579.0,4578.9,0.4883]
[1758182322785,2.78725458,4579.0,4578.9,0.4883]
[1758182323083,1.88719902,4579.0,4578.9,0.4883]
[1758182323283,2.78725458,4579.0,4578.9,0.295]
[1758182324086,2.7872713,4579.0,4578.9,0.295]
[1758182324779,2.7872713,4579.0,4578.6,0.0218]
[1758182324984,0.90005556,4578.7,4578.6,0.3168]
[1758182325184,1.11905556,4578.7,4578.6,0.3168]
[1758182327792,1.27186434,4578.7,4578.6,0.3168]
[1758182329096,1.27186434,4578.7,4578.6,0.5101]
[1758182329782,1.27186434,4578.7,4578.6,0.7041]
[1758182330891,1.5246386,4578.7,4578.6,0.7041]
[1758182331288,2.03921892,4578.7,4578.6,0.7041]
[1758182331589,2.03921892,4578.7,4578.6,0.6823]
[1758182332092,1.82021892,4578.7,4578.6,0.6823]
[1758182332292,2.03921892,4578.7,4578.6,0.6823]
[1758182335991,1.78644466,4578.7,4578.6,0.6823]
[1758182340598,1.78644466,4578.7,4578.6,0.4883]
[1758182340997,1.56744466,4578.7,4578.6,0.4883]
[1758182341199,1.78644466,4578.7,4578.6,0.4883]
[1758182346506,0.73358032,4578.7,4578.6,0.69]
[1758182347004,4.19047911,4578.7,4578.6,0.4883]
[1758182347504,4.19047911,4578.7,4578.6,0.295]
[1758182348608,3.97147911,4578.7,4578.6,0.295]
[1758182348907,4.19047911,4578.7,4578.6,0.295]
[1758182349103,4.19047911,4578.7,4578.6,0.5078]
[1758182350307,4.19048232,4578.7,4578.6,0.5078]
[1758182351403,4.19048232,4578.7,4578.6,0.295]
[1758182351708,5.24334666,4578.7,4578.5,0.4342]
[1758182351901,0.76368232,4578.6,4578.4,0.0218]
[1758182352106,0.76406142,4578.5,4578.4,0.0218]
[1758182352306,0.76406142,4578.5,4578.1,0.3152]
[1758182352507,3.2078,4578.2,4578.1,0.3152]
[1758182352703,3.97186142,4578.2,4578.1,0.3152]
[1758182353406,3.97186142,4578.2,4578.0,0.4363]
[1758182353611,0.98306142,4578.1,4578.0,0.4363]
[1758182354007,0.98306142,4578.1,4578.0,0.1206]